Workbook

Sheet Captura de Datos
E3: Formulario de Captura de Datos
E7: ID
E8: NOMBRE
E9: SALARIO MENSUAL
E10: VALOR DEL PRESTAMO
E11: TASA DE INTERES EFECTIVA
E12: CANTIDAD DE CUOTAS

Sheet Tabla de Datos
B2: Datos Empleados
B3: ID | C3: NOMBRE | D3: SALARIO MENSUAL | E3: VALOR DEL PRESTAMO | F3: TASA DE INTERES MENSUAL | G3: CANTIDAD DE CUOTAS | I3: REF1 | J3: 1
B4: 1 | C4: David Torres | D4: 200000 | E4: 1000000 | F4: 0.1 | G4: 40
B5: 4 | C5: Cristian | D5: 2340987 | E5: 98765432 | F5: 0.38 | G5: 46
B6: 3 | C6: Laura | D6: 345989 | E6: 23457800 | F6: 0.28 | G6: 4
B7: 2 | C7: Sofi | D7: 2500000 | E7: 300000000 | F7: 0.23 | G7: 12

Sheet Tabla de Amortización
B2: ELEGIR EMPLEADO
B4: DATOS INICIALES
B5: VALOR DEL CRÉDITO | C5: =INDEX('Tabla de Datos'!B4:G25,MATCH('Tabla de Datos'!J3,'Tabla de Datos'!$B$4:$B$23,0),4) -> 1000000
B6: CANTIDAD DE CUOTAS | C6: =INDEX('Tabla de Datos'!B4:G25,MATCH('Tabla de Datos'!J3,'Tabla de Datos'!$B$4:$B$23,0),6) -> 40 | E6: Mensual
B7: TASA DE INTERES | C7: =INDEX('Tabla de Datos'!B4:G25,MATCH('Tabla de Datos'!J3,'Tabla de Datos'!$B$4:$B$23,0),5) -> 0.1
B8: VALOR DE LA CUOTA | C8: =PMT(IF(E6="Efectiva anual",NOMINAL(C7,12)/12,C7),C6,-C5) -> 102259.4144
B10: TABLA DE AMORTIZACION MENSUAL
B13: PERIODO | C13: CUOTA | D13: CUOTA EXTRA | E13: INTERESES | F13: AMORTIZACION | G13: SALDO
B14: 0 | G14: =+C5 -> 1000000
B15: =IF(B14>=$C$6,"",B14+1) -> 1 | C15: =IF(B15<=$C$6,$C$8,"") -> 102259.4144 | E15: =IF(C15="","",G14*IF($E$6="Efectiva Anual",(NOMINAL($C$7,12)/12),$C$7)) -> 100000 | F15: =IF(C15="","",(C15+D15-E15)) -> 2259.414414 | G15: =IF(C15="","",(G14-F15)) -> 997740.5856
B16: =IF(B15>=$C$6,"",B15+1) -> 2 | C16: =IF(B16<=$C$6,$C$8,"") -> 102259.4144 | E16: =IF(C16="","",G15*IF($E$6="Efectiva Anual",(NOMINAL($C$7,12)/12),$C$7)) -> 99774.05856 | F16: =IF(C16="","",(C16+D16-E16)) -> 2485.355856 | G16: =IF(C16="","",(G15-F16)) -> 995255.2297
B17: 3 | C17: 102259.4144 | E17: =IF(C17="","",G16*IF($E$6="Efectiva Anual",(NOMINAL($C$7,12)/12),$C$7)) -> 99525.52297 | F17: 2733.891441 | G17: 992521.3383
B18: 4 | C18: 102259.4144 | E18: =IF(C18="","",G17*IF($E$6="Efectiva Anual",(NOMINAL($C$7,12)/12),$C$7)) -> 99252.13383 | F18: 3007.280586 | G18: 989514.0577
B19: 5 | C19: 102259.4144 | E19: =IF(C19="","",G18*IF($E$6="Efectiva Anual",(NOMINAL($C$7,12)/12),$C$7)) -> 98951.40577 | F19: 3308.008644 | G19: 986206.0491
B20: 6 | C20: 102259.4144 | E20: =IF(C20="","",G19*IF($E$6="Efectiva Anual",(NOMINAL($C$7,12)/12),$C$7)) -> 98620.60491 | F20: 3638.809508 | G20: 982567.2396
B21: 7 | C21: 102259.4144 | E21: =IF(C21="","",G20*IF($E$6="Efectiva Anual",(NOMINAL($C$7,12)/12),$C$7)) -> 98256.72396 | F21: 4002.690459 | G21: 978564.5491
B22: 8 | C22: 102259.4144 | E22: =IF(C22="","",G21*IF($E$6="Efectiva Anual",(NOMINAL($C$7,12)/12),$C$7)) -> 97856.45491 | F22: 4402.959505 | G22: 974161.5896
B23: 9 | C23: 102259.4144 | E23: =IF(C23="","",G22*IF($E$6="Efectiva Anual",(NOMINAL($C$7,12)/12),$C$7)) -> 97416.15896 | F23: 4843.255456 | G23: 969318.3341
B24: 10 | C24: 102259.4144 | E24: =IF(C24="","",G23*IF($E$6="Efectiva Anual",(NOMINAL($C$7,12)/12),$C$7)) -> 96931.83341 | F24: 5327.581001 | G24: 963990.7531
B25: =IF(B24>=$C$6,"",B24+1) -> 11 | C25: 102259.4144 | E25: =IF(C25="","",G24*IF($E$6="Efectiva Anual",(NOMINAL($C$7,12)/12),$C$7)) -> 96399.07531 | F25: 5860.339102 | G25: 958130.414
B26: 12 | C26: 102259.4144 | E26: =IF(C26="","",G25*IF($E$6="Efectiva Anual",(NOMINAL($C$7,12)/12),$C$7)) -> 95813.0414 | F26: 6446.373012 | G26: 951684.041
B27: 13 | C27: 102259.4144 | E27: =IF(C27="","",G26*IF($E$6="Efectiva Anual",(NOMINAL($C$7,12)/12),$C$7)) -> 95168.4041 | F27: 7091.010313 | G27: 944593.0307
B28: 14 | C28: 102259.4144 | E28: =IF(C28="","",G27*IF($E$6="Efectiva Anual",(NOMINAL($C$7,12)/12),$C$7)) -> 94459.30307 | F28: 7800.111344 | G28: 936792.9194
B29: 15 | C29: 102259.4144 | E29: =IF(C29="","",G28*IF($E$6="Efectiva Anual",(NOMINAL($C$7,12)/12),$C$7)) -> 93679.29194 | F29: 8580.122479 | G29: 928212.7969
B30: 16 | C30: 102259.4144 | E30: =IF(C30="","",G29*IF($E$6="Efectiva Anual",(NOMINAL($C$7,12)/12),$C$7)) -> 92821.27969 | F30: 9438.134726 | G30: 918774.6622
B31: 17 | C31: 102259.4144 | E31: =IF(C31="","",G30*IF($E$6="Efectiva Anual",(NOMINAL($C$7,12)/12),$C$7)) -> 91877.46622 | F31: 10381.9482 | G31: 908392.714
B32: 18 | C32: 102259.4144 | E32: =IF(C32="","",G31*IF($E$6="Efectiva Anual",(NOMINAL($C$7,12)/12),$C$7)) -> 90839.2714 | F32: 11420.14302 | G32: 896972.5709
B33: 19 | C33: 102259.4144 | E33: =IF(C33="","",G32*IF($E$6="Efectiva Anual",(NOMINAL($C$7,12)/12),$C$7)) -> 89697.25709 | F33: 12562.15732 | G33: 884410.4136
B34: 20 | C34: 102259.4144 | E34: =IF(C34="","",G33*IF($E$6="Efectiva Anual",(NOMINAL($C$7,12)/12),$C$7)) -> 88441.04136 | F34: 13818.37305 | G34: 870592.0406
B35: 21 | C35: 102259.4144 | E35: =IF(C35="","",G34*IF($E$6="Efectiva Anual",(NOMINAL($C$7,12)/12),$C$7)) -> 87059.20406 | F35: 15200.21036 | G35: 855391.8302
B36: 22 | C36: 102259.4144 | E36: =IF(C36="","",G35*IF($E$6="Efectiva Anual",(NOMINAL($C$7,12)/12),$C$7)) -> 85539.18302 | F36: 16720.23139 | G36: 838671.5988
B37: 23 | C37: 102259.4144 | E37: =IF(C37="","",G36*IF($E$6="Efectiva Anual",(NOMINAL($C$7,12)/12),$C$7)) -> 83867.15988 | F37: 18392.25453 | G37: 820279.3443
B38: 24 | C38: 102259.4144 | E38: =IF(C38="","",G37*IF($E$6="Efectiva Anual",(NOMINAL($C$7,12)/12),$C$7)) -> 82027.93443 | F38: 20231.47999 | G38: 800047.8643
B39: 25 | C39: 102259.4144 | E39: =IF(C39="","",G38*IF($E$6="Efectiva Anual",(NOMINAL($C$7,12)/12),$C$7)) -> 80004.78643 | F39: 22254.62799 | G39: 777793.2363
B40: 26 | C40: 102259.4144 | E40: =IF(C40="","",G39*IF($E$6="Efectiva Anual",(NOMINAL($C$7,12)/12),$C$7)) -> 77779.32363 | F40: 24480.09078 | G40: 753313.1455
B41: 27 | C41: 102259.4144 | E41: =IF(C41="","",G40*IF($E$6="Efectiva Anual",(NOMINAL($C$7,12)/12),$C$7)) -> 75331.31455 | F41: 26928.09986 | G41: 726385.0457
B42: 28 | C42: 102259.4144 | E42: =IF(C42="","",G41*IF($E$6="Efectiva Anual",(NOMINAL($C$7,12)/12),$C$7)) -> 72638.50457 | F42: 29620.90985 | G42: 696764.1358
B43: 29 | C43: 102259.4144 | E43: =IF(C43="","",G42*IF($E$6="Efectiva Anual",(NOMINAL($C$7,12)/12),$C$7)) -> 69676.41358 | F43: 32583.00083 | G43: 664181.135
B44: 30 | C44: 102259.4144 | E44: =IF(C44="","",G43*IF($E$6="Efectiva Anual",(NOMINAL($C$7,12)/12),$C$7)) -> 66418.1135 | F44: 35841.30092 | G44: 628339.8341
B45: 31 | C45: 102259.4144 | E45: =IF(C45="","",G44*IF($E$6="Efectiva Anual",(NOMINAL($C$7,12)/12),$C$7)) -> 62833.98341 | F45: 39425.43101 | G45: 588914.4031
B46: 32 | C46: 102259.4144 | E46: =IF(C46="","",G45*IF($E$6="Efectiva Anual",(NOMINAL($C$7,12)/12),$C$7)) -> 58891.44031 | F46: 43367.97411 | G46: 545546.4289
B47: 33 | C47: 102259.4144 | E47: =IF(C47="","",G46*IF($E$6="Efectiva Anual",(NOMINAL($C$7,12)/12),$C$7)) -> 54554.64289 | F47: 47704.77152 | G47: 497841.6574
B48: 34 | C48: 102259.4144 | E48: =IF(C48="","",G47*IF($E$6="Efectiva Anual",(NOMINAL($C$7,12)/12),$C$7)) -> 49784.16574 | F48: 52475.24867 | G48: 445366.4087
B49: 35 | C49: 102259.4144 | E49: =IF(C49="","",G48*IF($E$6="Efectiva Anual",(NOMINAL($C$7,12)/12),$C$7)) -> 44536.64087 | F49: 57722.77354 | G49: 387643.6352
B50: 36 | C50: 102259.4144 | E50: =IF(C50="","",G49*IF($E$6="Efectiva Anual",(NOMINAL($C$7,12)/12),$C$7)) -> 38764.36352 | F50: 63495.05089 | G50: 324148.5843
B51: 37 | C51: 102259.4144 | E51: =IF(C51="","",G50*IF($E$6="Efectiva Anual",(NOMINAL($C$7,12)/12),$C$7)) -> 32414.85843 | F51: 69844.55598 | G51: 254304.0283
B52: 38 | C52: 102259.4144 | E52: =IF(C52="","",G51*IF($E$6="Efectiva Anual",(NOMINAL($C$7,12)/12),$C$7)) -> 25430.40283 | F52: 76829.01158 | G52: 177475.0168
B53: 39 | C53: 102259.4144 | E53: =IF(C53="","",G52*IF($E$6="Efectiva Anual",(NOMINAL($C$7,12)/12),$C$7)) -> 17747.50168 | F53: 84511.91274 | G53: 92963.10401
B54: 40 | C54: 102259.4144 | E54: =IF(C54="","",G53*IF($E$6="Efectiva Anual",(NOMINAL($C$7,12)/12),$C$7)) -> 9296.310401 | F54: 92963.10401 | G54: -7.610651664e-09
E55: =IF(C55="","",G54*IF($E$6="Efectiva Anual",(NOMINAL($C$7,12)/12),$C$7)) -> 
E56: =IF(C56="","",G55*IF($E$6="Efectiva Anual",(NOMINAL($C$7,12)/12),$C$7)) -> 
E57: =IF(C57="","",G56*IF($E$6="Efectiva Anual",(NOMINAL($C$7,12)/12),$C$7)) -> 
E58: =IF(C58="","",G57*IF($E$6="Efectiva Anual",(NOMINAL($C$7,12)/12),$C$7)) -> 
E59: =IF(C59="","",G58*IF($E$6="Efectiva Anual",(NOMINAL($C$7,12)/12),$C$7)) -> 
E60: =IF(C60="","",G59*IF($E$6="Efectiva Anual",(NOMINAL($C$7,12)/12),$C$7)) -> 
E61: =IF(C61="","",G60*IF($E$6="Efectiva Anual",(NOMINAL($C$7,12)/12),$C$7)) -> 
E62: =IF(C62="","",G61*IF($E$6="Efectiva Anual",(NOMINAL($C$7,12)/12),$C$7)) -> 
E63: =IF(C63="","",G62*IF($E$6="Efectiva Anual",(NOMINAL($C$7,12)/12),$C$7)) -> 
E64: =IF(C64="","",G63*IF($E$6="Efectiva Anual",(NOMINAL($C$7,12)/12),$C$7)) -> 
E65: =IF(C65="","",G64*IF($E$6="Efectiva Anual",(NOMINAL($C$7,12)/12),$C$7)) -> 
E66: =IF(C66="","",G65*IF($E$6="Efectiva Anual",(NOMINAL($C$7,12)/12),$C$7)) -> 
E67: =IF(C67="","",G66*IF($E$6="Efectiva Anual",(NOMINAL($C$7,12)/12),$C$7)) -> 
E68: =IF(C68="","",G67*IF($E$6="Efectiva Anual",(NOMINAL($C$7,12)/12),$C$7)) -> 
E69: =IF(C69="","",G68*IF($E$6="Efectiva Anual",(NOMINAL($C$7,12)/12),$C$7)) -> 
E70: =IF(C70="","",G69*IF($E$6="Efectiva Anual",(NOMINAL($C$7,12)/12),$C$7)) -> 
E71: =IF(C71="","",G70*IF($E$6="Efectiva Anual",(NOMINAL($C$7,12)/12),$C$7)) -> 
E72: =IF(C72="","",G71*IF($E$6="Efectiva Anual",(NOMINAL($C$7,12)/12),$C$7)) -> 
E73: =IF(C73="","",G72*IF($E$6="Efectiva Anual",(NOMINAL($C$7,12)/12),$C$7)) -> 
E74: =IF(C74="","",G73*IF($E$6="Efectiva Anual",(NOMINAL($C$7,12)/12),$C$7)) -> 
E75: =IF(C75="","",G74*IF($E$6="Efectiva Anual",(NOMINAL($C$7,12)/12),$C$7)) -> 
E76: =IF(C76="","",G75*IF($E$6="Efectiva Anual",(NOMINAL($C$7,12)/12),$C$7)) -> 
E77: =IF(C77="","",G76*IF($E$6="Efectiva Anual",(NOMINAL($C$7,12)/12),$C$7)) -> 
E78: =IF(C78="","",G77*IF($E$6="Efectiva Anual",(NOMINAL($C$7,12)/12),$C$7)) -> 
E79: =IF(C79="","",G78*IF($E$6="Efectiva Anual",(NOMINAL($C$7,12)/12),$C$7)) -> 
B80: =IF(B79>=$C$6,"",B79+1) ->  | C80: =IF(B80<=$C$6,$C$8,"") ->  | E80: =IF(C80="","",G79*IF($E$6="Efectiva Anual",(NOMINAL($C$7,12)/12),$C$7)) ->  | F80: =IF(C80="","",(C80+D80-E80)) ->  | G80: =IF(C80="","",(G79-F80)) -> 
E81: =IF(C81="","",G80*IF($E$6="Efectiva Anual",(NOMINAL($C$7,12)/12),$C$7)) -> 
E82: =IF(C82="","",G81*IF($E$6="Efectiva Anual",(NOMINAL($C$7,12)/12),$C$7)) -> 
E83: =IF(C83="","",G82*IF($E$6="Efectiva Anual",(NOMINAL($C$7,12)/12),$C$7)) -> 
E84: =IF(C84="","",G83*IF($E$6="Efectiva Anual",(NOMINAL($C$7,12)/12),$C$7)) -> 
E85: =IF(C85="","",G84*IF($E$6="Efectiva Anual",(NOMINAL($C$7,12)/12),$C$7)) -> 
E86: =IF(C86="","",G85*IF($E$6="Efectiva Anual",(NOMINAL($C$7,12)/12),$C$7)) -> 
E87: =IF(C87="","",G86*IF($E$6="Efectiva Anual",(NOMINAL($C$7,12)/12),$C$7)) -> 
E88: =IF(C88="","",G87*IF($E$6="Efectiva Anual",(NOMINAL($C$7,12)/12),$C$7)) -> 
E89: =IF(C89="","",G88*IF($E$6="Efectiva Anual",(NOMINAL($C$7,12)/12),$C$7)) -> 
E90: =IF(C90="","",G89*IF($E$6="Efectiva Anual",(NOMINAL($C$7,12)/12),$C$7)) -> 
E91: =IF(C91="","",G90*IF($E$6="Efectiva Anual",(NOMINAL($C$7,12)/12),$C$7)) -> 
E92: =IF(C92="","",G91*IF($E$6="Efectiva Anual",(NOMINAL($C$7,12)/12),$C$7)) -> 
E93: =IF(C93="","",G92*IF($E$6="Efectiva Anual",(NOMINAL($C$7,12)/12),$C$7)) -> 
E94: =IF(C94="","",G93*IF($E$6="Efectiva Anual",(NOMINAL($C$7,12)/12),$C$7)) -> 
E95: =IF(C95="","",G94*IF($E$6="Efectiva Anual",(NOMINAL($C$7,12)/12),$C$7)) -> 
E96: =IF(C96="","",G95*IF($E$6="Efectiva Anual",(NOMINAL($C$7,12)/12),$C$7)) -> 
E97: =IF(C97="","",G96*IF($E$6="Efectiva Anual",(NOMINAL($C$7,12)/12),$C$7)) -> 
E98: =IF(C98="","",G97*IF($E$6="Efectiva Anual",(NOMINAL($C$7,12)/12),$C$7)) -> 
E99: =IF(C99="","",G98*IF($E$6="Efectiva Anual",(NOMINAL($C$7,12)/12),$C$7)) -> 
E100: =IF(C100="","",G99*IF($E$6="Efectiva Anual",(NOMINAL($C$7,12)/12),$C$7)) -> 
E101: =IF(C101="","",G100*IF($E$6="Efectiva Anual",(NOMINAL($C$7,12)/12),$C$7)) -> 
E102: =IF(C102="","",G101*IF($E$6="Efectiva Anual",(NOMINAL($C$7,12)/12),$C$7)) -> 
E103: =IF(C103="","",G102*IF($E$6="Efectiva Anual",(NOMINAL($C$7,12)/12),$C$7)) -> 
E104: =IF(C104="","",G103*IF($E$6="Efectiva Anual",(NOMINAL($C$7,12)/12),$C$7)) -> 
E105: =IF(C105="","",G104*IF($E$6="Efectiva Anual",(NOMINAL($C$7,12)/12),$C$7)) -> 
E106: =IF(C106="","",G105*IF($E$6="Efectiva Anual",(NOMINAL($C$7,12)/12),$C$7)) -> 
E107: =IF(C107="","",G106*IF($E$6="Efectiva Anual",(NOMINAL($C$7,12)/12),$C$7)) -> 
E108: =IF(C108="","",G107*IF($E$6="Efectiva Anual",(NOMINAL($C$7,12)/12),$C$7)) -> 
E109: =IF(C109="","",G108*IF($E$6="Efectiva Anual",(NOMINAL($C$7,12)/12),$C$7)) -> 
E110: =IF(C110="","",G109*IF($E$6="Efectiva Anual",(NOMINAL($C$7,12)/12),$C$7)) -> 
E111: =IF(C111="","",G110*IF($E$6="Efectiva Anual",(NOMINAL($C$7,12)/12),$C$7)) -> 
E112: =IF(C112="","",G111*IF($E$6="Efectiva Anual",(NOMINAL($C$7,12)/12),$C$7)) -> 
E113: =IF(C113="","",G112*IF($E$6="Efectiva Anual",(NOMINAL($C$7,12)/12),$C$7)) -> 
E114: =IF(C114="","",G113*IF($E$6="Efectiva Anual",(NOMINAL($C$7,12)/12),$C$7)) -> 
E115: =IF(C115="","",G114*IF($E$6="Efectiva Anual",(NOMINAL($C$7,12)/12),$C$7)) -> 
E116: =IF(C116="","",G115*IF($E$6="Efectiva Anual",(NOMINAL($C$7,12)/12),$C$7)) -> 
E117: =IF(C117="","",G116*IF($E$6="Efectiva Anual",(NOMINAL($C$7,12)/12),$C$7)) -> 
E118: =IF(C118="","",G117*IF($E$6="Efectiva Anual",(NOMINAL($C$7,12)/12),$C$7)) -> 
E119: =IF(C119="","",G118*IF($E$6="Efectiva Anual",(NOMINAL($C$7,12)/12),$C$7)) -> 
E120: =IF(C120="","",G119*IF($E$6="Efectiva Anual",(NOMINAL($C$7,12)/12),$C$7)) -> 
E121: =IF(C121="","",G120*IF($E$6="Efectiva Anual",(NOMINAL($C$7,12)/12),$C$7)) -> 
E122: =IF(C122="","",G121*IF($E$6="Efectiva Anual",(NOMINAL($C$7,12)/12),$C$7)) -> 
E123: =IF(C123="","",G122*IF($E$6="Efectiva Anual",(NOMINAL($C$7,12)/12),$C$7)) -> 
E124: =IF(C124="","",G123*IF($E$6="Efectiva Anual",(NOMINAL($C$7,12)/12),$C$7)) -> 
E125: =IF(C125="","",G124*IF($E$6="Efectiva Anual",(NOMINAL($C$7,12)/12),$C$7)) -> 
E126: =IF(C126="","",G125*IF($E$6="Efectiva Anual",(NOMINAL($C$7,12)/12),$C$7)) -> 
E127: =IF(C127="","",G126*IF($E$6="Efectiva Anual",(NOMINAL($C$7,12)/12),$C$7)) -> 
E128: =IF(C128="","",G127*IF($E$6="Efectiva Anual",(NOMINAL($C$7,12)/12),$C$7)) -> 
E129: =IF(C129="","",G128*IF($E$6="Efectiva Anual",(NOMINAL($C$7,12)/12),$C$7)) -> 
E130: =IF(C130="","",G129*IF($E$6="Efectiva Anual",(NOMINAL($C$7,12)/12),$C$7)) -> 
E131: =IF(C131="","",G130*IF($E$6="Efectiva Anual",(NOMINAL($C$7,12)/12),$C$7)) -> 
E132: =IF(C132="","",G131*IF($E$6="Efectiva Anual",(NOMINAL($C$7,12)/12),$C$7)) -> 
E133: =IF(C133="","",G132*IF($E$6="Efectiva Anual",(NOMINAL($C$7,12)/12),$C$7)) -> 
E134: =IF(C134="","",G133*IF($E$6="Efectiva Anual",(NOMINAL($C$7,12)/12),$C$7)) -> 
